bitfinex-derivatives/quotes_ETHF0:USTF0_20250309
["timestamp","ask_amount","ask_price","bid_price","bid_amount"]
[1741554074265,0.97595,2049.5,2049.3,0.98334225]
[1741554074652,0.6612,2049.7,2049.3,0.00732225]
[1741554074653,4.18377,2049.4,2049.3,0.00732225]
[1741554074954,1.62471,2049.4,2049.1,0.97608]
[1741554075153,0.6487,2049.4,2049.1,0.97608]
[1741554075351,3.8565,2049.4,2049.0,0.611]
[1741554075556,6.29649,2049.4,2048.9,3.8649]
[1741554075763,0.97616,2049.0,2048.9,3.8649]
[1741554075959,0.97616,2049.0,2048.9,3.87222225]
[1741554076466,0.97616,2049.0,2048.9,0.00732225]
[1741554076659,3.2078,2049.1,2048.9,0.00732225]
[1741554076963,0.97616,2049.0,2048.9,0.00732225]
[1741554077453,4.18396,2049.0,2048.9,0.00732225]
[1741554079861,0.97616,2049.0,2048.9,0.00732225]
[1741554080065,4.18396,2049.0,2048.9,0.00732225]
[1741554083155,8.18396,2049.0,2048.9,2.25e-06]
[1741554084166,4.18396,2049.0,2048.9,2.25e-06]
[1741554085154,8.18396,2049.0,2048.9,2.25e-06]
[1741554087057,4.18396,2049.0,2048.9,2.25e-06]
[1741554087869,8.18396,2049.0,2048.9,2.25e-06]
[1741554093370,4.18396,2049.0,2048.9,2.25e-06]
[1741554093972,10.48896,2049.0,2048.9,2.25e-06]
[1741554094174,6.48896,2049.0,2048.9,2.25e-06]
[1741554094471,10.48896,2049.0,2048.9,2.25e-06]
[1741554095764,6.48896,2049.0,2048.9,2.25e-06]
[1741554096274,10.48896,2049.0,2048.9,2.25e-06]
[1741554097369,6.48896,2049.0,2048.9,2.25e-06]
[1741554100966,10.48896,2049.0,2048.9,2.25e-06]
[1741554101376,6.48896,2049.0,2048.9,2.25e-06]
[1741554101577,10.48896,2049.0,2048.9,2.25e-06]
[1741554103479,0.97654,2048.2,2048.1,1.3019]
[1741554103668,4.18434,2048.2,2048.1,1.3019]
[1741554103872,0.97654,2048.2,2048.1,1.3019]
[1741554104177,4.18434,2048.2,2048.1,1.3019]
[1741554104878,0.97654,2048.2,2048.1,1.3019]
[1741554105078,4.18434,2048.2,2048.1,1.3019]
[1741554107302,4.18434,2048.2,2048.1,0.29066775]
[1741554107583,0.97664,2048.0,2047.9,0.00732225]
[1741554109790,3.2078,2048.2,2047.9,0.00732225]
[1741554109989,3.2078,2048.2,2047.9,0.98398225]
[1741554109990,4.18438,2048.2,2047.9,0.98398225]
[1741554110286,0.9766,2048.1,2048.0,0.6632]
[1741554110486,0.9766,2048.1,2048.0,1.3149]
[1741554110689,0.9766,2048.1,2048.0,1.9511]
[1741554111179,0.00732225,2048.4,2048.0,1.9511]
[1741554111573,0.97657,2048.2,2048.0,2.92774]
[1741554111984,0.00732225,2048.4,2048.0,1.9511]
[1741554112380,0.97659,2048.1,2048.0,1.9511]
[1741554112577,0.84869,2048.1,2048.0,1.9511]
[1741554112776,2.44846225,2048.4,2048.0,1.9511]
[1741554112990,0.97658,2048.2,2048.0,1.9511]
[1741554113283,2.44846225,2048.4,2048.0,1.9511]
[1741554113481,0.97659,2048.1,2048.0,1.9511]
[1741554114782,0.97659,2048.1,2048.0,1.2994]
[1741554115780,2.44846225,2048.4,2048.0,1.2994]
[1741554115988,0.97658,2048.2,2048.0,2.27603]
[1741554116187,0.97659,2048.1,2048.0,1.2994]
[1741554117185,0.97659,2048.1,2047.9,0.00732225]
[1741554117186,0.97664,2048.0,2047.9,0.00732225]
[1741554120194,4.18444,2048.0,2047.9,0.00732225]
[1741554124785,7.3604,2048.3,2047.9,0.00732225]
[1741554124994,0.9766,2048.1,2047.9,0.00732225]
[1741554125192,0.9766,2048.1,2047.9,0.63012225]
[1741554125393,0.98379225,2048.4,2048.1,0.97657]
[1741554125695,0.98379225,2048.4,2048.0,0.6475]
[1741554125696,0.00732225,2048.4,2048.0,0.6475]
[1741554125899,0.97656,2048.2,2048.0,0.6475]
[1741554126092,4.1843,2048.3,2048.0,1.62412]
[1741554126498,0.97654,2048.2,2048.0,0.6475]
[1741554126900,0.97659,2048.1,2048.0,0.6475]
[1741554127689,0.97664,2048.0,2047.9,0.00732225]
[1741554127895,4.18444,2048.0,2047.9,0.00732225]
[1741554128101,6.48744,2048.0,2047.9,0.00732225]
[1741554128797,0.97697,2047.3,2047.1,2.949]
[1741554128995,2.4422,2047.5,2046.9,1.2489]
[1741554129196,0.97709,2047.1,2046.9,1.2489]
[1741554129499,0.97711,2047.0,2046.9,1.2489]
[1741554129702,3.2078,2047.3,2046.9,1.2489]
[1741554129897,3.1087,2047.5,2046.9,1.2489]
[1741554130199,0.00732225,2047.2,2046.9,1.2489]
[1741554130503,0.9771,2047.1,2046.9,1.2489]
[1741554130691,0.00732225,2047.2,2046.9,1.2489]
[1741554130998,0.00732225,2047.2,2047.1,4.18487]
[1741554131201,3.2078,2047.8,2047.5,0.97686]
[1741554131504,0.97678,2047.7,2047.6,1.2773]
[1741554131699,4.18455,2047.8,2047.6,1.2773]
[1741554132004,0.97678,2047.7,2047.6,1.2773]
[1741554132396,0.97678,2047.7,2047.6,0.6194]
[1741554134098,3.2078,2047.8,2047.3,0.6707]
[1741554134295,0.97697,2047.3,2047.2,0.6435]
[1741554135107,3.2078,2047.5,2047.2,0.6435]
[1741554135308,4.18469,2047.5,2047.2,1.62049]
[1741554135603,1.3411,2047.7,2047.2,0.6435]
[1741554135813,2.31792,2047.7,2047.4,0.9769]
[1741554136103,0.6723,2047.7,2047.2,3.09379]
[1741554136298,3.2078,2047.8,2047.6,0.97683]
[1741554136299,4.18455,2047.8,2047.6,0.97683]
[1741554136500,3.2078,2047.8,2047.4,3.2078]
[1741554136699,3.2078,2047.8,2047.4,0.9769]
[1741554136901,0.97682,2047.7,2047.4,0.9769]
[1741554138001,3.2078,2047.8,2047.2,0.6513]
[1741554138204,0.97682,2047.7,2047.2,0.6513]
[1741554138406,3.2078,2047.8,2047.4,0.97688]
[1741554138601,0.97685,2047.6,2047.4,0.97688]
[1741554138806,3.2078,2047.8,2047.2,3.09382]
[1741554139006,0.97678,2047.7,2047.5,0.97686]
[1741554139208,0.97683,2047.6,2047.5,0.97686]
[1741554139406,0.9768,2047.7,2047.2,3.09382]
[1741554139607,0.97681,2047.7,2047.4,0.97688]
[1741554139814,3.2078,2047.8,2047.2,3.09382]
[1741554140006,4.18457,2047.8,2047.6,0.97682]
[1741554140309,0.97677,2047.8,2047.6,0.97682]
[1741554140713,0.00732225,2047.9,2047.8,0.97673]
[1741554140914,0.6163,2048.4,2048.3,0.97649]
[1741554141109,1.59274,2048.4,2048.3,0.97649]
[1741554141416,0.9765,2048.3,2048.2,0.97653]
[1741554141709,0.6099,2048.5,2048.0,5.64934]
[1741554141909,0.97652,2048.3,2048.1,0.97655]
[1741554142100,0.97652,2048.3,2048.2,0.97654]
[1741554142306,0.97659,2048.1,2048.0,0.00732225]
[1741554144716,1.3206,2048.2,2048.1,0.97659]
[1741554144908,2.29715,2048.2,2048.0,0.98394225]
[1741554145104,3.2078,2048.3,2048.2,0.97654]
[1741554145310,0.00732225,2048.5,2048.0,5.65671225]
[1741554145514,0.00732225,2048.5,2048.3,0.97645]
[1741554145715,0.98372225,2048.5,2048.3,0.97645]
[1741554145913,0.00732225,2048.5,2048.4,0.97644]
[1741554147518,0.00732225,2048.5,2048.4,4.18424]
[1741554147708,3.2078,2049.3,2048.4,10.8064]
[1741554148019,0.97608,2049.2,2049.0,4.18393]
[1741554148518,0.6385,2049.3,2049.0,4.18393]
[1741554148720,0.9761,2049.2,2049.0,4.18393]
[1741554149424,0.6385,2049.3,2049.0,3.2078]
[1741554149613,0.6385,2049.3,2048.8,0.6192]
[1741554149924,0.97618,2049.0,2048.8,1.59543]
[1741554150214,3.8564,2049.2,2048.8,0.6192]
[1741554150420,0.97613,2049.1,2048.9,0.97619]
[1741554151814,0.97623,2048.9,2048.7,0.97629]
[1741554152124,0.97623,2048.9,2048.6,2.949]
[1741554152125,0.6311,2049.0,2048.6,2.949]
[1741554152419,0.6311,2049.0,2048.6,3.92532]
[1741554152724,3.2078,2049.1,2048.6,5.38981]
[1741554152921,3.2078,2049.1,2049.0,0.97616]
[1741554153222,1.62468,2049.2,2049.0,0.97614]
[1741554153424,1.62468,2049.2,2048.9,0.97616]
[1741554153722,1.62468,2049.2,2048.8,3.8446]
[1741554153925,1.62468,2049.2,2049.0,0.97615]
[1741554154123,1.61454,2049.3,2049.1,0.97611]
[1741554154322,0.97608,2049.2,2049.0,0.97613]
[1741554155122,0.97606,2049.2,2049.0,0.97613]
[1741554155629,0.97611,2049.1,2048.9,1.58459]
[1741554155829,3.2078,2049.2,2048.8,3.2078]
[1741554156121,0.97609,2049.2,2049.0,0.97614]
[1741554156916,0.97609,2049.2,2048.8,3.2078]
[1741554157121,0.97611,2049.1,2049.0,0.97614]
[1741554157321,0.6385,2049.3,2048.9,0.97618]
[1741554157521,0.6385,2049.3,2048.8,3.2078]
[1741554157824,0.6385,2049.3,2048.9,0.97618]
[1741554158129,0.97617,2049.0,2048.8,4.18402]
[1741554158320,0.97621,2048.9,2048.8,4.18402]
[1741554158521,0.97618,2049.0,2048.8,4.18402]
[1741554158826,3.2078,2049.2,2048.8,3.2078]
[1741554158827,0.97621,2048.9,2048.8,3.2078]
[1741554159023,1.62261,2048.9,2048.8,3.2078]
[1741554159430,0.6464,2048.9,2048.8,3.2078]
[1741554159630,1.62261,2048.9,2048.8,3.2078]
[1741554160328,3.2078,2049.5,2048.8,9.64843]
[1741554160625,3.2078,2049.5,2048.5,4.88181]
[1741554160626,3.2078,2050.1,2049.8,0.97576]
[1741554160834,1.2319,2049.8,2049.7,0.97581]
[1741554161028,1.2319,2049.8,2049.7,0.00732225]
[1741554161330,2.20768,2049.8,2049.7,0.00732225]
[1741554163924,1.2319,2049.8,2049.2,3.2078]
[1741554164132,0.97602,2049.3,2049.2,3.2078]
[1741554164327,4.73861,2049.7,2049.2,4.18386]
[1741554164328,0.97594,2049.5,2049.2,4.18386]
[1741554164731,0.97602,2049.3,2049.2,3.2078]
[1741554165427,2.299,2049.7,2049.2,3.2078]
[1741554165627,2.299,2049.7,2049.3,0.976]
[1741554166032,0.97593,2049.5,2049.3,0.976]
[1741554166229,2.299,2049.7,2049.2,3.2078]
[1741554166431,0.97609,2049.2,2049.0,0.00732225]
[1741554166734,1.61991,2049.1,2049.0,0.00732225]
[1741554167434,0.6438,2049.1,2049.0,0.00732225]
[1741554167634,1.61991,2049.1,2049.0,0.00732225]
[1741554170234,1.61991,2049.1,2049.0,0.98348225]
[1741554170830,0.62,2049.3,2049.0,0.98348225]
[1741554170831,0.62,2049.3,2049.0,3.21512225]
[1741554171135,0.62,2049.3,2049.1,0.97607]
[1741554171136,1.59606,2049.3,2049.1,0.97607]
[1741554171327,0.97606,2049.2,2049.1,0.97607]
[1741554171729,1.59606,2049.3,2049.0,3.21512225]
[1741554172037,0.62,2049.3,2049.0,3.21512225]
[1741554172225,0.97609,2049.2,2049.1,0.9761]
[1741554173626,0.62,2049.3,2049.0,3.21512225]
[1741554174021,0.97611,2049.2,2049.0,4.19126225]
[1741554174428,0.97606,2049.2,2049.0,4.19126225]
[1741554174929,0.97611,2049.1,2049.0,4.19126225]
[1741554175632,0.62,2049.3,2049.0,3.21512225]
[1741554175839,0.97611,2049.1,2049.0,0.00732225]
[1741554176138,0.97611,2049.1,2049.0,0.98348225]
[1741554176326,0.97611,2049.1,2049.0,0.00732225]
[1741554176527,1.62541,2049.1,2049.0,0.00732225]
[1741554178337,0.62,2049.3,2049.0,0.00732225]
[1741554178539,0.97611,2049.1,2049.0,0.98344225]
[1741554178730,0.97611,2049.1,2049.0,0.98345225]
[1741554179037,0.97609,2049.2,2049.1,0.97609]
[1741554179836,0.97608,2049.2,2049.1,0.97608]
[1741554180331,0.62,2049.3,2049.0,0.00732225]
[1741554180531,0.62,2049.3,2049.2,0.97606]
[1741554180737,1.59602,2049.3,2049.2,0.97606]
[1741554180934,0.62,2049.3,2049.2,0.97606]
[1741554181238,1.59602,2049.3,2049.2,0.97606]
[1741554183234,0.62,2049.3,2049.2,0.97606]
[1741554183635,1.59602,2049.3,2049.2,0.97606]
[1741554183936,6.0422,2049.6,2049.5,0.97592]
[1741554183937,1.64227,2049.6,2049.5,0.97592]
[1741554184147,0.97594,2049.5,2049.4,0.97595]
[1741554184844,0.6664,2049.6,2049.3,4.80849]
[1741554185047,0.97595,2049.5,2049.4,0.97596]
[1741554185437,0.6664,2049.6,2049.4,0.97597]
[1741554185638,0.97592,2049.5,2049.4,0.97597]
[1741554185835,0.97597,2049.4,2049.3,4.1838]
[1741554186142,0.97595,2049.5,2049.4,0.97595]
[1741554186339,1.64231,2049.6,2049.3,3.2078]
[1741554186641,0.6664,2049.6,2049.5,0.97592]
[1741554186943,1.64231,2049.6,2049.4,0.97593]
[1741554187141,1.64231,2049.6,2049.5,0.97592]
[1741554187142,0.6664,2049.6,2049.5,0.97592]
[1741554187341,1.64231,2049.6,2049.4,0.97594]
[1741554187537,0.6664,2049.6,2049.5,0.97592]
[1741554188136,2.44660225,2050.0,2049.3,3.2078]
[1741554188137,0.00732225,2050.0,2049.4,2.4399]
[1741554188440,0.00732225,2050.0,2049.9,0.97573]
[1741554188835,0.97552,2050.4,2050.2,0.97555]
[1741554189034,0.97554,2050.3,2050.0,0.6498]
[1741554189345,0.97554,2050.3,2050.1,0.9756]
[1741554189939,0.97562,2050.2,2050.0,1.62546]
[1741554190239,6.97235,2050.5,2050.0,0.00732225]
[1741554190441,0.9756,2050.2,2050.0,0.98297225]
[1741554190642,0.9756,2050.2,2050.1,0.97564]
[1741554191249,4.5337,2050.5,2050.0,0.00732225]
[1741554191446,0.97556,2050.3,2050.1,0.97561]
[1741554191643,0.97552,2050.4,2050.2,0.97559]
[1741554191845,0.97558,2050.3,2050.1,0.97562]
[1741554192142,4.5337,2050.5,2050.0,0.00732225]
[1741554192348,0.97552,2050.4,2050.2,0.97557]
[1741554192540,2.30136,2050.5,2050.0,0.00732225]
[1741554192743,2.30136,2050.5,2050.0,2.44651225]
[1741554192956,1.3259,2050.5,2050.4,0.97549]
[1741554193144,3.2078,2050.8,2050.2,3.2078]
[1741554193347,0.97536,2050.7,2050.3,0.6256]
[1741554193651,0.97541,2050.6,2050.4,0.97548]
[1741554193852,0.97549,2050.4,2050.3,0.6256]
[1741554194152,0.97549,2050.4,2050.3,1.60113]
[1741554194349,0.97549,2050.4,2050.3,0.6256]
[1741554194553,0.6303,2050.4,2050.2,4.18337]
[1741554194746,1.60584,2050.4,2050.2,4.18337]
[1741554194941,0.6303,2050.4,2050.2,3.2078]
[1741554195252,3.8381,2050.4,2050.0,6.87578225]
[1741554195550,0.9756,2050.2,2050.0,4.57977225]
[1741554196154,0.9756,2050.2,2050.0,4.57976225]
[1741554196350,0.9756,2050.2,2050.0,3.60412225]
[1741554196651,0.97562,2050.2,2050.0,4.57976225]
[1741554197552,0.97564,2050.1,2050.0,0.00732225]
[1741554197752,1.58904,2050.1,2050.0,0.00732225]
[1741554197951,0.97568,2050.0,2049.9,3.2078]
[1741554198257,4.532,2050.0,2049.4,0.6288]
[1741554198458,4.532,2050.0,2049.3,0.6451]
[1741554198656,0.97598,2049.4,2049.1,3.31158571]
[1741554198953,3.2078,2049.7,2049.0,0.0141]
[1741554199153,0.97602,2049.3,2049.0,0.99754225]
[1741554199354,0.97611,2049.1,2049.0,0.00732225]
[1741554200251,4.18391,2049.1,2049.0,0.00732225]
[1741554201856,2.44043,2049.0,2048.4,4.18423]
[1741554202057,3.2078,2048.8,2048.4,3.2078]
[1741554202250,3.2078,2048.5,2048.1,4.475]
[1741554202450,3.2078,2048.5,2047.6,2.44201]
[1741554202451,3.2078,2048.5,2047.8,4.18451]
[1741554202761,3.2078,2048.5,2048.0,0.97661]
[1741554202951,0.97651,2048.3,2048.0,0.97661]
[1741554203149,0.97662,2048.1,2047.9,0.00732225]
[1741554203861,0.00732225,2048.4,2047.9,0.00732225]
[1741554204047,0.97654,2048.2,2047.9,0.98397225]
[1741554204251,0.98379225,2048.4,2048.1,0.97658]
[1741554204455,0.98379225,2048.4,2047.9,0.00732225]
[1741554204456,0.00732225,2048.4,2047.9,0.00732225]
[1741554204757,0.00732225,2048.4,2048.3,0.97649]
[1741554206156,0.00732225,2048.4,2048.1,3.2078]
[1741554206657,0.98378225,2048.4,2048.2,0.97653]
[1741554206859,0.97652,2048.3,2048.1,0.97657]
[1741554207058,0.97656,2048.2,2048.0,0.97662]
[1741554207261,0.97652,2048.3,2048.1,0.97656]
[1741554207955,0.00732225,2048.4,2047.9,0.00732225]
[1741554208153,0.97656,2048.2,2048.0,0.97662]
[1741554208358,0.00732225,2048.4,2047.9,0.00732225]
[1741554208949,0.97656,2048.2,2048.0,0.97663]
[1741554209158,0.97654,2048.2,2048.0,0.97663]
[1741554209359,0.97656,2048.2,2048.0,0.97662]
[1741554209555,2.44852225,2048.4,2047.9,0.00732225]
[1741554209761,0.97664,2048.0,2047.9,0.00732225]
[1741554213261,0.97668,2047.9,2047.8,0.188]
[1741554213463,0.97673,2047.8,2047.7,0.0365]
[1741554216066,0.97683,2047.6,2047.5,0.00732225]
[1741554216269,4.18463,2047.6,2047.5,0.00732225]
[1741554217567,4.84363,2047.6,2047.5,0.00732225]
[1741554217767,3.8668,2047.6,2047.0,0.97708]
[1741554217966,6.3089,2047.6,2047.0,0.97708]
[1741554218165,0.97694,2047.4,2046.9,4.5311]
[1741554218365,0.97697,2047.3,2047.0,0.97711]
[1741554218564,0.97694,2047.4,2047.2,0.977]
[1741554218772,0.97701,2047.3,2047.0,0.97708]
[1741554218969,0.00732225,2047.5,2047.1,0.00732225]
[1741554219168,0.97702,2047.2,2047.1,0.00732225]
[1741554221674,0.97702,2047.2,2047.1,0.98439225]
[1741554222367,0.6619,2047.4,2047.1,0.00732225]
[1741554222670,0.977,2047.3,2047.2,0.97701]
[1741554222863,0.97699,2047.3,2047.2,0.97698]
[1741554223171,0.6619,2047.4,2047.1,0.00732225]
[1741554223560,0.97698,2047.3,2047.2,0.97699]
[1741554223765,0.00732225,2047.5,2047.1,0.00732225]
[1741554223965,0.98422225,2047.5,2047.4,0.97692]
[1741554224470,0.00732225,2047.5,2047.4,0.97692]
[1741554224766,3.2078,2048.4,2047.4,4.0]
[1741554224966,0.97661,2048.1,2047.6,3.2078]
[1741554225266,0.97674,2047.8,2047.7,0.97676]
[1741554225470,0.97678,2047.7,2047.6,0.9768]
[1741554225671,0.6467,2048.0,2047.5,0.6328]
[1741554225870,0.97675,2047.8,2047.6,0.97679]
[1741554226071,0.65402225,2048.0,2047.5,0.6328]
[1741554226261,0.97674,2047.8,2047.5,0.6328]
[1741554226665,0.97674,2047.8,2047.6,0.97679]
[1741554227269,0.65402225,2048.0,2047.5,0.6328]
[1741554227475,0.65402225,2048.0,2047.6,0.97679]
[1741554227673,0.97677,2047.8,2047.6,0.97679]
[1741554228069,0.65402225,2048.0,2047.6,0.97679]
[1741554228270,0.97675,2047.8,2047.7,0.97678]
[1741554228475,0.65402225,2048.0,2047.9,0.97668]
[1741554228774,0.00732225,2048.0,2047.6,4.1846]
[1741554228965,0.97678,2047.7,2047.6,4.1846]
[1741554229562,0.97678,2047.7,2047.6,3.2078]
[1741554229773,0.00732225,2048.0,2047.7,0.97677]
[1741554229977,0.00732225,2048.0,2047.6,4.18459]
[1741554230367,0.97677,2047.8,2047.6,4.18459]
[1741554230568,0.97671,2047.9,2047.8,0.97673]
[1741554230869,0.97671,2047.9,2047.6,3.2078]
[1741554230870,0.98398225,2048.0,2047.7,0.6253]
[1741554231071,0.00732225,2048.0,2047.7,0.6253]
[1741554231274,0.00732225,2048.0,2047.9,0.97668]
[1741554231471,0.98396225,2048.0,2047.9,0.97668]
[1741554231670,0.00732225,2048.0,2047.7,1.2768]
[1741554232370,0.97673,2047.8,2047.7,1.60205]
[1741554232570,0.97678,2047.7,2047.6,4.18461]
[1741554232769,0.97673,2047.8,2047.7,0.97675]
[1741554232972,0.6729,2047.9,2047.6,3.2078]
[1741554233166,0.97675,2047.8,2047.7,0.97674]
[1741554233373,1.64962,2047.9,2047.7,0.97674]
[1741554233574,1.64962,2047.9,2047.6,3.2078]
[1741554233776,1.64962,2047.9,2047.8,0.97673]
[1741554233976,0.6729,2047.9,2047.6,3.2078]
[1741554234176,0.97673,2047.8,2047.7,0.97674]
[1741554234373,0.6729,2047.9,2047.5,0.6328]
[1741554234675,0.6345,2047.8,2047.5,0.6328]
[1741554234980,0.97678,2047.8,2047.6,4.18459]
[1741554235171,0.97672,2047.9,2047.8,0.97673]
[1741554235477,0.97671,2047.9,2047.8,0.97673]
[1741554236878,0.98400225,2048.0,2047.6,5.64983]
[1741554237076,0.98400225,2048.0,2047.9,0.97668]
[1741554237272,0.97673,2047.8,2047.7,1.62295]
[1741554237477,0.97673,2047.8,2047.7,2.34885]
[1741554237679,0.97673,2047.8,2047.7,1.3721]
[1741554237976,0.97673,2047.8,2047.7,0.7259]
[1741554238372,4.18453,2047.8,2047.7,0.7259]
[1741554238976,0.97697,2047.3,2047.2,3.2078]
[1741554239279,3.2078,2047.5,2047.2,3.2078]
[1741554239486,0.97693,2047.4,2047.2,4.18479]
[1741554240177,3.05119,2047.7,2047.2,4.18479]
[1741554240178,0.97697,2047.3,2047.2,4.18479]
[1741554240477,0.97696,2047.4,2047.2,3.2078]
[1741554240683,0.97697,2047.3,2047.2,3.2078]
[1741554240882,3.2078,2047.5,2047.2,4.18479]
[1741554241084,3.2078,2047.5,2047.2,0.97699]
[1741554241487,0.97696,2047.4,2047.2,0.97699]
[1741554241682,0.97697,2047.3,2047.2,0.97699]
[1741554241985,0.97697,2047.3,2047.1,0.00732225]
[1741554242184,3.2078,2047.5,2047.2,0.97702]
[1741554242394,0.97697,2047.3,2047.2,0.97702]
[1741554243282,3.2078,2047.5,2047.1,0.00732225]
[1741554243477,4.84142,2047.2,2047.1,0.00732225]
[1741554243683,10.1594,2047.2,2046.4,0.6166]
[1741554243883,0.6536,2047.1,2046.7,0.97722]
[1741554244085,0.97721,2046.8,2046.7,0.97722]
[1741554244385,0.97721,2046.8,2046.4,0.6166]
[1741554244585,0.97721,2046.8,2046.6,0.97727]
[1741554244777,0.00732225,2046.8,2046.4,0.62392225]
[1741554244981,0.97735,2046.5,2046.4,0.62392225]
[1741554245189,5.65817225,2046.8,2046.4,1.60132225]
[1741554245683,0.97734,2046.6,2046.4,1.60132225]
[1741554245989,3.21512225,2046.8,2046.4,1.60132225]
[1741554246284,3.21512225,2046.8,2046.4,0.62392225]
[1741554246479,0.98454225,2046.8,2046.4,0.62392225]
[1741554246785,0.00732225,2046.8,2046.6,0.97727]
[1741554246982,0.00732225,2046.8,2046.7,0.97726]
[1741554248181,0.00732225,2046.8,2046.7,1.62306]
[1741554248385,0.6177,2047.2,2046.7,4.6458]
[1741554248578,2.9336,2047.6,2047.0,0.97711]
[1741554248783,0.97697,2047.3,2047.2,0.977]
[1741554249791,0.97695,2047.4,2047.3,0.97697]
[1741554250085,0.00732225,2047.5,2047.1,0.6274]
[1741554250387,0.97707,2047.1,2047.0,1.4294]
[1741554250786,0.6375,2047.2,2047.1,0.97707]
[1741554250988,0.6375,2047.2,2047.0,1.4294]
[1741554251189,0.97707,2047.1,2047.0,2.40649]
[1741554251379,0.97707,2047.1,2047.0,1.4294]
[1741554251685,1.61455,2047.2,2047.0,2.40651]
[1741554251992,0.97695,2047.4,2047.2,0.97698]
[1741554252581,0.97697,2047.3,2047.2,0.97698]
[1741554252785,0.97697,2047.3,2047.1,0.6609]
[1741554253088,0.68052225,2047.5,2047.1,3.8687]
[1741554253289,0.97695,2047.4,2047.2,0.97698]
[1741554253491,0.97695,2047.4,2047.1,4.5037]
[1741554253793,0.97695,2047.4,2047.2,0.97702]
[1741554253995,0.97694,2047.4,2047.1,4.5037]
[1741554254193,0.97698,2047.3,2047.2,0.977]
[1741554254791,0.97702,2047.2,2047.1,4.5037]
[1741554254991,0.977,2047.3,2047.2,0.97702]
[1741554255295,0.68052225,2047.5,2047.1,0.6609]
[1741554255687,0.97702,2047.2,2047.1,1.63794]
[1741554255992,0.97701,2047.3,2047.1,0.6609]
[1741554256192,0.97701,2047.3,2047.2,0.97702]
[1741554256791,0.97707,2047.1,2047.0,1.4294]
[1741554258886,4.18487,2047.1,2047.0,1.4294]
[1741554259290,6.15647,2047.1,2047.0,1.4294]
[1741554260708,10.15647,2047.1,2047.0,1e-05]
[1741554261203,13.75547,2047.1,2047.0,1e-05]
[1741554263702,0.97735,2046.5,2046.4,0.00732225]
[1741554263899,6.48015,2046.5,2046.4,0.00732225]
[1741554264104,10.48015,2046.5,2046.4,0.00732225]
[1741554264299,9.5028,2046.5,2045.7,0.6278]
[1741554264606,0.97769,2045.8,2045.7,0.6278]
[1741554265008,3.2078,2045.9,2045.5,0.6684]
[1741554265205,0.97773,2045.7,2045.5,1.64622]
[1741554265604,0.00732225,2045.8,2045.5,1.64622]
[1741554266010,0.97775,2045.7,2045.5,0.6684]
[1741554266512,0.97776,2045.7,2045.5,0.6684]
[1741554266814,0.97773,2045.7,2045.4,1.61298225]
[1741554267109,0.97783,2045.5,2045.4,0.63512225]
[1741554268106,0.97781,2045.6,2045.4,1.61300225]
[1741554268708,0.97783,2045.5,2045.4,0.63512225]
[1741554269507,0.00732225,2045.8,2045.4,0.63512225]
[1741554269810,0.97783,2045.5,2045.4,2.25e-06]
[1741554270008,0.97783,2045.5,2044.5,3.2078]
[1741554270009,0.97816,2044.8,2044.7,0.654]
[1741554270212,0.97831,2044.5,2044.4,0.38484906]
[1741554270409,4.18611,2044.5,2044.4,0.38484906]
[1741554270610,3.2078,2044.5,2044.0,0.6499]
[1741554270911,0.97847,2044.2,2044.0,0.6499]
[1741554271113,0.9785,2044.1,2044.0,0.65722225]
[1741554271504,0.9785,2044.1,2044.0,0.00732225]
[1741554272809,5.51112225,2044.5,2044.0,0.00732225]
[1741554273218,0.98566225,2044.5,2044.1,3.2078]
[1741554273412,0.97836,2044.4,2044.1,3.2078]
[1741554273812,0.00732225,2044.5,2044.1,3.2078]
[1741554274220,0.97838,2044.4,2044.1,3.2078]
[1741554275213,0.00732225,2044.5,2044.1,3.2078]
[1741554275417,0.9785,2044.1,2044.0,0.00732225]
[1741554278510,3.2745,2044.1,2044.0,0.00732225]
[1741554278906,3.2745,2044.1,2044.0,2.25e-06]
[1741554279620,7.8885,2044.1,2044.0,2.25e-06]
[1741554279820,3.8885,2044.1,2044.0,2.25e-06]
[1741554280518,7.8885,2044.1,2044.0,2.25e-06]
[1741554281312,0.9792,2042.7,2042.4,4.18709]
[1741554281512,3.2078,2043.1,2042.5,1.2675]
[1741554281713,4.74427,2043.3,2042.5,1.2675]
[1741554281915,0.97908,2042.9,2042.7,0.97917]
[1741554282112,4.74427,2043.3,2042.6,0.9792]
[1741554282113,3.2078,2043.1,2042.6,0.9792]
[1741554282312,3.2078,2043.1,2042.5,1.2675]
[1741554282519,0.97917,2042.7,2042.6,0.00494183]
[1741554284715,2.297,2042.9,2042.6,0.00494183]
[1741554285027,2.297,2042.9,2042.8,0.97912]
[1741554285218,4.19414035,2043.1,2042.7,0.6171]
[1741554285518,0.97904,2043.0,2042.8,0.97911]
[1741554285720,0.00734035,2043.1,2042.7,1.2902]
[1741554285923,0.97907,2043.0,2042.7,2.26935]
[1741554286216,0.00734035,2043.1,2042.7,1.2902]
[1741554286418,2.297,2043.6,2043.2,0.9789]
[1741554286616,0.97884,2043.4,2043.2,0.9789]
[1741554286919,3.2078,2043.7,2043.3,0.6171]
[1741554287116,0.97883,2043.4,2043.3,0.6171]
[1741554287323,0.97881,2043.5,2043.3,1.59596]
[1741554287518,3.2078,2043.7,2043.3,1.59596]
[1741554287519,3.2078,2043.7,2043.3,0.6171]
[1741554287713,0.97883,2043.4,2043.3,0.6171]
[1741554289020,0.00734035,2043.6,2043.5,0.97879]
[1741554289319,0.00734035,2043.6,2043.3,0.6171]
[1741554289520,0.00734035,2043.6,2043.4,0.9788]
[1741554289521,0.97879,2043.5,2043.4,0.9788]
[1741554289721,0.97879,2043.5,2043.3,0.6171]
[1741554289722,0.98610035,2043.6,2043.3,0.6171]